bitfinex/quotes_ETHUSD_20251107
["timestamp","ask_amount","ask_price","bid_price","bid_amount"]
[1762533228003,1.055004,3321.9,3321.1,0.005]
[1762533228168,5.32504141,3321.9,3321.1,0.005]
[1762533228370,4.91953741,3321.9,3321.1,0.005]
[1762533229495,5.32504141,3321.9,3321.1,0.005]
[1762533229997,4.82511375,3321.9,3321.1,0.005]
[1762533231971,4.32627829,3321.9,3321.1,0.005]
[1762533232171,3.01032541,3321.9,3321.1,0.1913]
[1762533233689,3.01032541,3321.9,3321.3,0.498]
[1762533234174,2.51098306,3321.9,3321.3,0.498]
[1762533234668,0.47220257,3322.6,3321.1,0.1913]
[1762533234896,0.47220257,3322.6,3321.8,0.499]
[1762533234897,3.01032541,3321.9,3321.8,0.499]
[1762533235287,3.01024132,3322.0,3321.8,0.499]
[1762533235508,3.01032541,3321.9,3321.8,0.001]
[1762533235725,4.27003741,3321.9,3321.8,0.001]
[1762533236112,2.51253993,3321.9,3321.8,0.001]
[1762533236597,2.99344393,3321.9,3321.8,0.001]
[1762533236801,2.51253993,3321.9,3321.8,0.001]
[1762533237003,2.58793993,3321.9,3321.8,0.001]
[1762533237328,2.51253993,3321.9,3321.8,0.001]
[1762533237689,2.58793993,3321.9,3321.8,0.001]
[1762533238088,2.91804393,3321.9,3321.8,0.001]
[1762533238389,3.41582941,3321.9,3321.8,0.001]
[1762533238802,3.01032541,3321.9,3321.8,0.001]
[1762533239400,4.75294141,3321.9,3321.8,0.001]
[1762533240001,4.34743741,3321.9,3321.8,0.001]
[1762533240204,3.76996466,3321.9,3321.8,0.001]
[1762533240504,4.27157875,3320.2,3320.1,0.006]
[1762533240703,4.27157875,3320.2,3319.7,0.001]
[1762533240704,3.01222965,3319.8,3319.7,0.001]
[1762533241389,3.01176481,3320.4,3319.7,0.001]
[1762533241390,0.0799,3321.1,3319.7,0.001]
[1762533241604,0.002,3322.6,3319.7,0.499]
[1762533241605,0.405504,3321.5,3319.7,0.499]
[1762533241826,3.01160084,3320.5,3319.7,0.499]
[1762533242027,1.259712,3321.1,3319.7,0.499]
[1762533242200,0.485404,3321.5,3319.7,0.499]
[1762533242201,0.405504,3321.5,3320.9,0.49847689]
[1762533242402,4.27085322,3321.0,3320.9,0.49847689]
[1762533242593,4.27085322,3321.0,3319.7,0.499]
[1762533242594,0.405504,3320.8,3319.7,0.499]
[1762533242791,3.01222965,3319.8,3319.7,0.001]
[1762533243718,4.27194165,3319.8,3319.7,0.001]
[1762533244323,10.88273665,3319.8,3319.7,0.001]
[1762533245035,10.80283665,3319.8,3319.7,0.001]
[1762533245243,3.76984468,3319.8,3319.7,0.001]
[1762533245423,1.259712,3319.8,3319.7,0.001]
[1762533245624,4.27194165,3319.8,3319.7,0.001]
[1762533245957,4.67744565,3319.8,3319.7,0.001]
[1762533246124,4.75734565,3319.8,3319.7,0.001]
[1762533246325,4.25659841,3319.8,3319.7,0.001]
[1762533246536,3.77119441,3319.8,3319.7,0.001]
[1762533246943,7.50547394,3320.6,3319.7,0.001]
[1762533247118,3.01207084,3320.0,3319.7,0.48]
[1762533247319,3.01192857,3320.2,3319.7,0.48]
[1762533247552,3.0119665,3320.1,3319.7,0.48]
[1762533247721,3.01222965,3319.8,3319.7,0.001]
[1762533248148,0.47248197,3320.6,3319.7,0.48]
[1762533248349,3.01168533,3320.4,3320.3,0.50194703]
[1762533248552,4.27139733,3320.4,3320.3,0.50194703]
[1762533248743,4.27139733,3320.4,3320.3,0.98094703]
[1762533248939,1.259712,3320.4,3320.3,0.98094703]
[1762533249143,0.47240723,3321.0,3320.3,0.50194703]
[1762533249322,3.01151616,3320.6,3320.3,0.50194703]
[1762533249743,0.47237835,3321.4,3320.3,0.98094703]
[1762533249930,0.007,3321.9,3320.3,0.98094703]
[1762533250130,3.01168533,3320.4,3320.3,0.50194703]
[1762533250330,0.47236049,3321.2,3320.8,0.49992453]
[1762533250556,1.259712,3321.0,3320.8,0.49992453]
[1762533250761,3.01107002,3321.1,3320.8,0.49992453]
[1762533250919,0.007,3321.9,3320.9,0.479]
[1762533251124,0.007,3321.9,3321.2,0.1914]
[1762533251319,0.007,3321.9,3321.0,0.1914]
[1762533251320,3.01105055,3321.1,3321.0,0.1914]
[1762533251554,3.01123189,3320.9,3320.8,0.49992453]
[1762533251731,0.007,3321.9,3320.8,0.49992453]
[1762533251732,3.01117406,3321.0,3320.8,0.49992453]
[1762533251929,1.266712,3321.9,3320.8,0.97892453]
[1762533251930,3.01070884,3321.5,3320.8,0.97892453]
[1762533252162,3.01041603,3321.8,3321.1,0.1914]
[1762533252363,3.01105055,3321.1,3320.8,0.49992453]
[1762533252534,3.01105055,3321.1,3320.9,0.5014198]
[1762533252734,3.01104931,3321.2,3320.8,0.41657493]
[1762533252931,1.259712,3321.5,3320.8,0.41657493]
[1762533253257,1.266712,3321.9,3320.8,0.41657493]
[1762533253573,3.01123189,3320.9,3320.8,0.41657493]
[1762533254280,3.01117355,3321.0,3320.8,0.41657493]
[1762533254437,3.01114122,3321.0,3320.9,0.49823799]
[1762533254937,4.27085322,3321.0,3320.9,0.49823799]
[1762533255142,3.01105414,3321.1,3320.9,0.49823799]
[1762533255341,3.01114122,3321.0,3320.9,0.49823799]
[1762533256570,3.01114122,3321.0,3320.9,0.99683073]
[1762533256729,1.68493168,3322.2,3320.9,0.27272345]
[1762533257084,3.01111024,3321.1,3320.9,0.27272345]
[1762533257279,3.01114122,3321.0,3320.9,0.27272345]
[1762533257429,4.27085322,3321.0,3320.9,0.27272345]
[1762533259598,1.259712,3321.1,3320.9,1.74679627]
[1762533259799,3.01114122,3321.0,3320.9,0.77509627]
[1762533259998,1.259712,3321.1,3320.9,0.77509627]
[1762533260202,0.002,3321.7,3321.0,0.9717]
[1762533260512,0.002,3321.7,3320.9,0.77509627]
[1762533260513,3.01110534,3321.1,3320.9,0.77509627]
[1762533260676,1.259712,3321.5,3320.9,0.77509627]
[1762533261194,3.01114122,3321.0,3320.9,0.77509627]
[1762533261398,3.0110567,3321.1,3320.9,0.77509627]
[1762533261698,1.261712,3321.7,3320.9,0.77509627]
[1762533261699,0.002,3321.7,3321.0,3.49014122]
[1762533261916,0.002,3321.7,3321.6,0.4927]
[1762533262104,0.1524,3321.7,3321.6,0.4927]
[1762533262398,0.1524,3321.7,3321.5,0.1914]
[1762533262570,2.50997318,3321.6,3321.5,0.1914]
[1762533262772,3.01083382,3321.4,3321.2,0.1914]
[1762533263115,3.01086923,3321.3,3321.2,0.1914]
[1762533263311,0.002,3321.7,3320.9,0.77509627]
[1762533263312,0.1504,3321.2,3321.1,0.1914]
[1762533263822,0.1504,3321.2,3321.1,1.1631]
[1762533264124,0.002,3321.7,3321.5,3.01062752]
[1762533264334,0.002,3321.7,3321.6,0.4927]
[1762533264472,0.002,3321.7,3321.6,3.9822973]
[1762533264679,0.002,3321.7,3321.6,4.4834468]
[1762533265118,0.002,3321.7,3321.6,11.54654474]
[1762533265273,0.007,3321.9,3321.6,11.51643877]
[1762533265641,0.005,3323.9,3322.3,3.00996297]
[1762533265843,0.005,3323.9,3322.8,7.03299197]
[1762533266150,0.005,3323.9,3323.8,0.4927]
[1762533266451,0.005,3323.9,3323.2,0.1914]
[1762533266452,3.00800514,3324.5,3323.6,3.00872512]
[1762533266740,0.0012,3324.7,3324.6,0.1914]
[1762533267352,0.002,3325.1,3324.8,3.00769971]
[1762533267515,0.002,3325.1,3324.6,0.6704]
[1762533267704,3.00958067,3325.0,3324.7,0.479]
[1762533268025,0.002,3325.0,3324.7,0.479]
[1762533268701,0.002,3325.0,3324.8,0.50026156]
[1762533269050,0.002,3325.0,3324.8,0.97926156]
[1762533269339,0.002,3325.0,3324.8,3.98696127]
[1762533269643,0.002,3325.0,3324.8,4.42254226]
[1762533269803,0.002,3325.0,3324.8,4.39246527]
[1762533270003,0.002,3325.3,3325.2,3.4128419]
[1762533270221,0.002,3325.3,3325.2,0.596904]
[1762533270531,0.002,3325.3,3325.2,4.0832419]
[1762533270750,0.007,3325.9,3325.3,0.49929595]
[1762533270906,0.007,3325.9,3325.8,10.44529132]
[1762533271213,0.005,3326.9,3326.5,3.00616263]
[1762533271413,0.1061,3329.1,3326.6,4.67128826]
[1762533271414,0.3792,3329.1,3326.6,4.67128826]
[1762533271614,3.38307602,3329.1,3327.8,0.1914]
[1762533271814,3.0045437,3328.3,3327.8,0.6704]
[1762533272031,0.3792,3329.1,3327.8,0.6704]
[1762533272240,0.3792,3329.1,3327.5,0.1987]
[1762533272241,0.2781,3328.8,3327.5,0.1987]
[1762533272406,3.00461569,3328.3,3327.5,0.1987]
[1762533272604,0.0042,3327.9,3327.5,0.1987]
[1762533272808,0.0042,3327.9,3327.7,0.49999907]
[1762533273019,3.00498828,3327.8,3327.7,0.49999907]
[1762533273625,0.0042,3327.9,3327.7,0.49999907]
[1762533274233,3.00498828,3327.8,3327.7,0.49999907]
[1762533274607,4.26470028,3327.8,3327.7,0.49999907]
[1762533274807,4.26479058,3327.7,3327.3,0.49978419]
[1762533275037,3.00534952,3327.4,3327.3,0.49978419]
[1762533275308,1.329912,3327.9,3327.3,0.49978419]
[1762533275545,3.00534952,3327.4,3327.3,0.49978419]
[1762533275709,1.259712,3327.6,3327.3,0.49978419]
[1762533276057,3.00534952,3327.4,3327.3,0.49978419]
[1762533276206,0.002,3327.8,3327.3,0.49978419]
[1762533276408,3.00534952,3327.4,3327.3,0.49978419]
[1762533276978,3.00534952,3327.4,3326.6,0.1987]
[1762533277110,3.00557534,3327.2,3326.6,0.1987]
[1762533277315,3.00535965,3327.4,3326.7,3.00593322]
[1762533277515,3.00573338,3327.0,3326.6,0.6679]
[1762533277735,0.002,3327.8,3326.6,0.6679]
[1762533277944,0.002,3327.8,3326.8,3.0058246]
[1762533278274,0.002,3327.8,3326.7,0.4692]
[1762533278412,0.002,3327.8,3327.1,3.00558486]
[1762533278616,0.002,3327.8,3327.0,3.00562598]
[1762533278869,0.002,3327.8,3326.8,3.00588942]
[1762533278870,3.00535118,3327.4,3326.8,0.4692]
[1762533279156,2.98493074,3327.5,3326.9,0.4692]
[1762533279323,0.002,3327.8,3326.9,0.4692]
[1762533279514,0.002,3327.8,3326.6,0.1987]
[1762533279515,3.00560701,3327.2,3326.6,0.1987]
[1762533279715,3.00580337,3326.9,3326.6,0.1987]
[1762533279926,3.0052592,3327.5,3326.0,0.1914]
[1762533279927,1.259712,3327.1,3326.0,0.6606]
[1762533280130,1.259712,3327.5,3326.0,0.6606]
[1762533280342,3.00569525,3327.1,3326.1,0.4587]
[1762533280517,3.00569312,3327.1,3326.1,0.4587]
[1762533280856,1.259712,3327.5,3326.1,0.4587]
[1762533281059,0.002,3327.8,3326.8,0.50129097]
[1762533281221,0.002,3327.8,3327.4,0.1929]
[1762533281546,3.00509125,3327.7,3327.4,0.1929]
[1762533281723,3.00525317,3327.6,3326.9,0.6516]
[1762533281919,3.00530886,3327.5,3326.9,0.6516]
[1762533282468,0.002,3327.8,3326.9,0.1929]
[1762533282623,3.00550087,3327.3,3326.9,0.1929]
[1762533282816,3.00537788,3327.4,3326.9,0.1929]
[1762533283169,3.00531497,3327.5,3327.2,0.50241873]
[1762533283473,3.00543984,3327.3,3327.2,0.50241873]
[1762533283650,4.26515184,3327.3,3327.2,0.50241873]
[1762533284057,4.54325184,3327.3,3327.2,0.50241873]
[1762533284821,4.26515184,3327.3,3327.2,0.50241873]
[1762533285022,4.54325184,3327.3,3327.2,0.50241873]
[1762533285258,0.1061,3326.5,3325.4,0.4587]
[1762533285460,1.259712,3326.3,3325.4,0.4587]
[1762533285762,0.405504,3327.6,3326.4,0.1929]
[1762533286064,3.00571092,3327.0,3326.4,0.1929]
[1762533286263,0.1496,3326.5,3326.1,0.6516]
[1762533286619,0.1496,3326.5,3326.2,3.46512852]
[1762533286859,0.1496,3326.5,3326.4,0.4685]
[1762533287062,0.1496,3326.5,3326.3,0.4587]
[1762533287348,0.1496,3326.5,3326.4,0.50081422]
[1762533287554,0.1496,3326.5,3326.4,0.96931422]
[1762533287752,0.1496,3326.5,3326.4,0.50081422]
[1762533287925,3.15576263,3326.5,3326.4,0.50081422]
[1762533288384,0.1496,3326.5,3326.4,0.50081422]
[1762533289169,3.15576263,3326.5,3326.1,0.1929]
[1762533289369,3.00596618,3326.8,3326.3,0.501391]
[1762533289693,3.00609723,3326.6,3326.3,0.501391]
[1762533289880,3.006253,3326.4,3326.3,0.501391]
[1762533290082,4.535265,3326.4,3326.3,0.501391]
[1762533291259,0.1496,3326.3,3326.1,0.1929]
[1762533291561,3.00636047,3326.3,3326.1,0.1929]
[1762533291787,3.00638323,3326.3,3325.9,0.5004583]
[1762533292109,0.1496,3326.1,3326.0,3.00661455]
[1762533292294,0.47157553,3327.6,3326.2,0.1929]
[1762533292593,3.00561861,3327.2,3326.5,3.00610742]
[1762533292806,0.278,3327.7,3326.2,0.1929]
[1762533292990,3.00606587,3326.7,3326.2,0.1929]
[1762533293159,1.259712,3327.2,3326.2,0.1929]
[1762533293366,3.00636263,3326.3,3325.5,0.4587]
[1762533293684,1.259712,3326.4,3325.5,0.4587]
[1762533293882,0.106,3326.8,3325.6,3.00697618]
[1762533294117,3.00609144,3326.6,3326.1,0.001]
[1762533294421,3.00613426,3326.6,3326.2,0.1929]
[1762533295099,0.106,3326.8,3326.1,0.001]
[1762533295305,1.365712,3326.8,3326.1,0.001]
[1762533295468,3.00616263,3326.5,3326.4,0.49858364]
[1762533295883,0.1052,3326.8,3326.4,0.49858364]
[1762533296086,3.00612474,3326.6,3326.4,0.49858364]
[1762533296286,0.002,3327.2,3326.4,0.49858364]
[1762533296521,3.00608451,3326.6,3326.4,0.49858364]
[1762533296726,1.259712,3326.6,3326.4,0.49858364]
[1762533297632,3.00607325,3326.6,3326.5,0.4685]
[1762533297809,0.002,3327.2,3327.0,3.00563681]
[1762533298009,0.002,3327.2,3326.7,3.00595486]
[1762533298210,0.002,3327.2,3326.3,0.5014656]
[1762533298721,3.00625009,3326.5,3326.3,0.5014656]
[1762533298923,0.1052,3326.7,3326.3,0.5014656]
[1762533299421,3.006253,3326.4,3326.3,0.5014656]
[1762533299662,2.50519723,3326.2,3326.1,0.4519]
[1762533300188,0.1052,3326.7,3326.1,0.4519]
[1762533300393,3.28363376,3326.2,3326.1,0.4519]
[1762533300593,4.81334576,3326.2,3326.1,0.4519]
[1762533300924,1.259712,3327.1,3326.1,1.572]
[1762533301105,0.002,3327.2,3326.1,1.572]
[1762533301288,3.00632194,3326.4,3326.1,1.572]
[1762533301487,0.002,3327.2,3326.1,1.1133]
[1762533301488,3.00612769,3326.6,3326.1,1.1133]
[1762533301685,0.002,3327.2,3326.6,0.49946166]
[1762533301885,0.002,3327.2,3327.1,0.6614]
[1762533302497,3.00572081,3327.0,3326.7,0.1929]
[1762533302703,3.1555819,3326.7,3326.6,0.49946166]
[1762533302900,0.1496,3326.7,3326.6,0.49946166]
[1762533303230,0.1496,3326.7,3326.6,1.47226166]
[1762533303399,0.1496,3326.7,3326.6,0.49946166]
[1762533303598,0.1496,3326.7,3326.1,1.1253]
[1762533303791,0.1496,3326.5,3326.1,1.1253]
[1762533303986,3.00626578,3326.4,3326.1,1.1253]
[1762533304192,3.00643376,3326.2,3326.1,0.4519]
[1762533304695,0.002,3327.2,3326.1,1.6176]
[1762533304928,0.1496,3326.4,3326.3,0.4923]
[1762533305331,0.1496,3326.4,3326.1,0.6448]
[1762533305630,0.1496,3326.2,3326.1,1.1253]
[1762533305830,0.002,3327.2,3326.3,0.35202907]
[1762533306031,3.00599688,3326.7,3326.3,0.35202907]
[1762533306247,0.002,3327.2,3326.3,0.35202907]
[1762533306248,0.1496,3326.4,3326.3,0.35202907]
[1762533306531,3.155853,3326.4,3326.3,0.35202907]
[1762533306836,0.1496,3326.4,3326.3,0.35202907]
[1762533307304,0.002,3327.2,3326.3,1.32482907]
[1762533307503,0.1496,3326.7,3326.4,3.03624818]
[1762533307707,3.00572509,3327.0,3326.8,0.35133835]
[1762533308122,3.00564387,3327.1,3326.8,0.35133835]
[1762533308336,4.64071319,3326.9,3326.8,0.35133835]
[1762533308510,4.26614576,3326.2,3326.1,0.4519]
[1762533308836,4.26894576,3326.2,3326.1,0.4519]
[1762533308995,4.54614576,3326.2,3326.1,0.4519]
[1762533309352,3.00670495,3325.9,3325.8,0.001]
[1762533309508,3.00697618,3325.6,3325.1,0.005]
[1762533309695,4.2670499,3325.2,3325.1,0.005]
[1762533309897,4.5307499,3325.2,3325.1,0.5032112]
[1762533310207,4.5307499,3325.2,3323.7,0.1929]
[1762533310208,3.00824258,3324.2,3323.7,0.1929]
[1762533310407,3.00824258,3324.2,3323.2,0.1929]
[1762533310610,3.00661714,3326.0,3324.2,3.00824258]
[1762533310850,3.00696117,3325.7,3324.6,3.00787317]
[1762533311128,3.00696117,3325.7,3324.3,0.4805]
[1762533311129,3.00706185,3325.6,3324.8,3.00764064]
[1762533311329,0.2762,3326.4,3324.9,0.03007609]
[1762533311330,1.259712,3326.0,3324.9,0.03007609]
[1762533311518,3.28246655,3326.4,3325.0,3.00743922]
[1762533311519,3.00679535,3325.8,3325.0,3.00743922]
[1762533311722,3.00688756,3325.7,3325.0,3.00743922]
[1762533311897,3.00635665,3326.3,3325.6,3.00694941]
[1762533312096,3.00627463,3326.4,3325.7,3.00688441]
[1762533312331,4.26607094,3326.3,3325.5,0.4805]
[1762533312509,3.00617281,3326.5,3325.5,0.4805]
[1762533312510,3.00626129,3326.4,3325.7,3.00682202]
[1762533312942,0.002,3326.7,3325.6,0.03006976]
[1762533313140,0.002,3326.7,3326.6,3.00607226]
[1762533313624,0.002,3326.7,3326.6,3.48657226]
[1762533313998,0.002,3326.7,3326.6,3.98693172]
[1762533314223,0.002,3326.7,3326.6,0.98085946]
[1762533314621,3.0079819,3326.7,3326.6,0.50035946]
[1762533314843,4.9493979,3326.7,3326.6,0.50035946]
[1762533315368,4.2676939,3326.7,3326.6,0.50035946]
[1762533315654,4.5438939,3326.7,3326.6,0.50035946]
[1762533316168,3.0062576,3326.4,3326.1,0.1929]
[1762533316328,3.0062576,3326.4,3325.9,0.50212877]
[1762533316329,3.00643169,3326.3,3325.9,0.50212877]
[1762533316523,1.261712,3326.7,3325.9,0.50212877]
[1762533316524,0.002,3326.7,3325.9,0.50212877]
[1762533316832,3.00661455,3326.0,3325.9,0.50212877]
[1762533317236,3.00650592,3326.2,3325.9,0.50212877]
[1762533317442,4.26632655,3326.0,3325.9,0.50212877]
[1762533317675,4.26632655,3326.0,3323.8,6.54926108]
[1762533317676,3.00751879,3325.0,3323.8,6.54926108]
[1762533317839,5.35487713,3324.9,3324.1,0.006]
[1762533318023,4.85438944,3324.9,3324.1,0.006]
[1762533318223,4.94758712,3324.5,3324.1,0.006]
[1762533318534,4.26795458,3324.2,3324.1,0.006]
[1762533318723,5.12153477,3324.2,3324.1,0.006]
[1762533319054,1.259712,3324.2,3324.1,0.006]
[1762533319265,4.26795458,3324.2,3324.1,0.006]
[1762533320160,4.26795458,3324.2,3324.1,0.50780668]
[1762533320367,3.41351106,3324.9,3324.1,0.50780668]
[1762533320368,0.40585188,3324.9,3324.1,0.50780668]
[1762533320678,4.26734625,3324.9,3324.3,0.1929]
[1762533320840,0.1031,3325.5,3324.4,3.03814221]
[1762533321047,3.00715703,3325.4,3324.4,3.48849024]
[1762533321244,0.3110257,3325.4,3324.4,0.4805]
[1762533321574,0.1031,3325.5,3324.1,0.50780668]
[1762533321575,0.405504,3325.2,3324.1,0.50780668]
[1762533321730,4.2672184,3325.1,3324.1,0.50780668]
[1762533321934,0.2742,3325.3,3324.2,0.03008242]
[1762533322163,4.26732125,3324.9,3324.8,0.49922176]
[1762533322372,4.69405338,3324.9,3324.8,0.49922176]
[1762533323442,4.96825338,3324.9,3324.8,0.49922176]
[1762533324256,4.96825338,3324.9,3324.5,0.49968419]
[1762533324257,4.26764,3324.6,3324.5,0.49968419]
[1762533324488,4.99518175,3324.6,3324.5,0.49968419]
[1762533324693,1.98725375,3324.6,3324.5,0.49968419]
[1762533324889,3.00776339,3324.8,3324.5,0.49968419]
[1762533325074,1.259712,3324.7,3324.5,0.49968419]
[1762533325281,0.1031,3325.5,3324.5,0.49968419]
[1762533325463,0.1031,3326.0,3325.1,3.0073692]
[1762533325664,3.00700082,3325.6,3325.1,0.4805]
[1762533326030,0.405504,3326.3,3325.1,0.4805]
[1762533326300,3.00679535,3325.8,3325.7,0.50025999]
[1762533326584,4.86785631,3325.8,3325.7,0.50025999]
[1762533326801,1.86106096,3325.8,3325.7,0.50025999]
[1762533326950,3.60814431,3325.8,3325.7,0.50025999]
[1762533327145,3.00679535,3325.8,3325.7,0.50025999]
[1762533327480,0.47169215,3326.4,3325.7,0.50025999]
[1762533327681,3.00679535,3325.8,3325.7,0.50025999]
[1762533327888,3.0065229,3326.2,3325.7,0.50025999]
[1762533328058,3.01087407,3326.9,3326.0,3.00654558]
[1762533328257,0.005,3326.9,3326.6,0.1929]
[1762533328954,0.005,3326.9,3326.3,0.50112916]
[1762533329287,3.006253,3326.4,3326.3,0.50112916]
[1762533329585,0.005,3326.9,3326.4,0.4805]
[1762533329999,3.01083506,3326.9,3326.6,0.1929]
[1762533330193,0.005,3326.9,3326.6,0.1929]
[1762533330399,3.0079819,3326.7,3326.6,0.69357394]
[1762533330600,3.0079819,3326.7,3326.6,0.50067394]
[1762533330983,5.29613919,3326.7,3326.6,0.50067394]
[1762533331779,3.0070666,3325.5,3325.4,0.3425]
[1762533332005,3.00696487,3325.7,3324.3,6.54926108]
[1762533332006,3.00731459,3325.3,3324.8,0.4805]
[1762533332206,1.259712,3326.1,3324.9,3.0076045]
[1762533332404,1.259712,3326.5,3325.5,0.49771488]
[1762533332608,0.22901573,3326.5,3325.5,3.50476557]
[1762533332911,3.00616263,3326.5,3325.5,0.49771488]
[1762533333109,3.00697618,3325.6,3325.5,0.49771488]
[1762533333323,0.002,3326.7,3325.6,0.4658]
[1762533333519,1.259712,3326.0,3325.6,0.4658]
[1762533333891,3.00659681,3326.1,3325.6,0.4658]
[1762533334092,3.00662553,3326.0,3325.6,0.4658]
[1762533334528,3.00670495,3325.9,3325.8,0.49830393]
[1762533335382,4.26641695,3325.9,3325.8,0.49830393]
[1762533336380,2.50939978,3325.3,3324.9,0.4658]
[1762533336721,3.00730147,3325.3,3324.9,0.4658]
[1762533337031,4.94612095,3325.9,3324.4,0.001]
[1762533337194,0.54226483,3325.8,3324.7,3.00778264]
[1762533337383,1.259712,3325.5,3324.8,3.03770591]
[1762533337721,3.00709088,3325.5,3324.9,0.4658]
[1762533337922,0.2742,3326.0,3324.4,0.001]
[1762533338220,3.00797112,3324.5,3324.4,0.001]
[1762533338527,3.30876823,3324.5,3324.4,0.50254718]
[1762533338732,4.56848023,3324.5,3324.4,0.50254718]
[1762533339016,4.26768312,3324.5,3324.4,0.50254718]
[1762533339216,0.1031,3325.4,3324.4,0.96834718]
[1762533339420,0.1031,3325.4,3324.4,0.50254718]
[1762533339421,3.00762495,3324.9,3324.4,0.50254718]
[1762533339728,3.0073379,3325.2,3324.4,0.50254718]
[1762533339917,0.43701499,3325.2,3324.4,0.50254718]
[1762533340222,0.1031,3325.4,3324.4,0.50254718]
[1762533340407,3.00792822,3324.6,3324.4,0.50254718]
[1762533340586,4.26732125,3324.9,3324.8,0.50187183]
[1762533340783,0.1031,3325.4,3324.8,0.50187183]
[1762533341061,0.405504,3325.9,3324.8,0.50187183]
[1762533341241,3.00633305,3326.4,3325.3,0.1867]
[1762533341385,3.00760925,3324.9,3324.8,0.50187183]
[1762533341581,0.74514846,3326.2,3324.8,0.50187183]
[1762533341582,3.00652415,3326.1,3324.8,0.50187183]
[1762533341834,3.3817888,3326.0,3325.0,3.00751656]
[1762533341984,0.2734,3326.6,3325.0,3.00751656]
[1762533341985,3.00695223,3325.7,3325.0,3.00751656]
[1762533342319,3.00643376,3326.2,3325.1,0.6641]
[1762533342487,3.00697659,3325.6,3325.1,0.6641]
[1762533342685,3.0070666,3325.5,3325.4,0.50216575]
[1762533342904,0.3786,3326.3,3325.4,0.50216575]
[1762533343129,3.00616263,3326.5,3325.5,0.4774]
[1762533343318,3.00679615,3325.8,3325.5,0.4774]
[1762533343496,3.00658256,3326.1,3325.5,3.48441361]
[1762533343817,3.00607226,3326.6,3325.5,0.4774]
[1762533344019,3.00607226,3326.6,3325.4,0.50216575]
[1762533344231,3.006253,3326.4,3325.4,0.50216575]
[1762533344435,3.0070666,3325.5,3325.4,0.50216575]
[1762533344582,0.405504,3326.4,3325.3,0.50120307]
[1762533344583,0.405504,3326.2,3325.3,0.50120307]
[1762533344828,0.002,3326.7,3325.3,0.50120307]
[1762533345028,0.407504,3326.7,3325.3,0.97860307]
[1762533345230,3.00704413,3325.6,3325.3,0.97860307]
[1762533345582,3.00693892,3325.7,3325.3,0.97860307]
[1762533345873,0.1772416,3326.6,3325.4,0.4774]
[1762533346076,3.00668348,3326.0,3325.4,3.48452036]
[1762533346362,3.00672614,3325.9,3325.4,0.4774]
[1762533346529,3.00633092,3326.4,3325.6,3.00694863]
[1762533346731,1.261712,3326.7,3326.3,0.1867]
[1762533346732,0.002,3326.7,3326.3,0.1867]
[1762533346965,0.002,3326.7,3326.4,0.4774]
[1762533347339,0.002,3326.7,3326.5,3.00615106]
[1762533347730,0.002,3326.7,3326.6,0.4774]
[1762533347927,0.002,3326.7,3326.3,0.1867]
[1762533348166,0.002,3326.7,3326.0,0.1496]
[1762533348167,0.002,3326.7,3326.0,0.1867]
[1762533348387,3.00607226,3326.6,3326.0,0.1867]
[1762533348531,0.002,3326.7,3326.1,3.00652415]
[1762533348870,0.002,3326.7,3326.4,0.50126473]
[1762533349031,0.002,3326.7,3326.5,3.48349386]
[1762533349368,0.002,3326.7,3326.5,0.4774]
[1762533349554,0.002,3326.7,3326.4,0.50126473]
[1762533349877,0.002,3326.7,3326.5,0.4774]
[1762533350244,0.002,3326.7,3326.4,0.50126473]
[1762533350469,0.002,3326.7,3326.5,0.4774]
[1762533350776,0.002,3326.7,3326.6,0.5014969]
[1762533350980,3.0079819,3326.7,3326.6,0.5014969]
[1762533351351,4.9465979,3326.7,3326.6,0.5014969]
[1762533351674,5.35781991,3326.7,3326.6,0.5014969]
[1762533352042,0.405504,3326.3,3325.1,0.1867]
[1762533352243,0.405504,3326.5,3324.4,0.001]
[1762533352244,3.0074974,3325.1,3324.4,0.001]
[1762533352458,3.0074974,3325.1,3324.5,3.00792391]
[1762533352777,3.00730096,3325.3,3324.4,0.001]
[1762533352778,3.00724746,3325.3,3324.4,0.001]
[1762533353096,1.362012,3325.4,3325.0,0.49776172]
[1762533353255,1.259712,3325.5,3325.0,0.49776172]
[1762533353454,3.00732809,3325.3,3325.0,0.49776172]
[1762533353695,0.1023,3325.7,3325.0,0.49776172]
[1762533353906,1.362012,3325.7,3325.1,0.1867]
[1762533354088,1.665216,3326.8,3325.2,3.0073379]
[1762533354258,3.0068202,3325.8,3325.1,0.6641]
[1762533354452,3.00690895,3325.7,3325.1,0.6641]
[1762533354700,0.405504,3326.1,3325.1,0.1867]
[1762533354899,4.26619698,3326.2,3325.6,0.49843894]
[1762533355108,3.00688576,3325.7,3325.6,0.49843894]
[1762533355397,3.60825291,3325.7,3325.6,0.49843894]
[1762533355907,3.00682246,3325.8,3325.6,0.49843894]
[1762533356166,3.00688576,3325.7,3325.6,0.49843894]
[1762533356326,4.36889776,3325.7,3325.6,0.49843894]
[1762533356532,5.40714473,3325.7,3325.6,0.49843894]
[1762533356673,5.68054473,3325.7,3325.6,0.49843894]
[1762533356879,3.00745343,3325.1,3324.6,0.001]
[1762533357106,0.405504,3325.6,3324.6,0.001]
[1762533357320,1.14054697,3325.7,3324.6,0.001]
[1762533357321,1.259712,3325.1,3324.6,0.001]
[1762533357530,0.405504,3325.6,3324.6,0.001]
[1762533357714,3.0076643,3324.9,3324.6,0.001]
[1762533357915,3.00779017,3324.7,3324.6,0.001]
[1762533358233,4.26750217,3324.7,3324.6,0.001]
[1762533358398,4.86904762,3324.7,3324.6,0.001]
[1762533358597,1.259712,3325.2,3324.6,0.4784]
[1762533358828,0.405504,3325.6,3324.6,0.001]
[1762533359042,3.00747562,3325.1,3324.8,0.49819072]
[1762533359342,3.00736772,3325.2,3324.8,0.49819072]
[1762533359549,0.47180285,3325.8,3324.8,0.49819072]
[1762533359849,3.0076084,3325.0,3324.8,0.49819072]
[1762533360045,3.00760925,3324.9,3324.8,0.49819072]
[1762533360417,3.88252135,3324.9,3324.8,0.49819072]
[1762533360737,5.54773735,3324.9,3324.8,0.49819072]